[Event "Early-Titled-Tuesday-Blitz-August-29-2023"]
[Site "Chess.com"]
[Date "2023.08.29"]
[Round "7"]
[White "kacprekt"]
[Black "lefonghua"]
[Result "0-1"]
[WhiteElo "2442"]
[BlackElo "2685"]
[TimeControl "180+1"]
[EndTime "9:18:30 PDT"]
[Termination "lefonghua won by resignation"]

1. g3 {[%clk 0:03:00.9]} 1... Nf6 {[%clk 0:03:00]} 2. Bg2 {[%clk 0:03:00.7]}
2... g6 {[%clk 0:03:00.7]} 3. e4 {[%clk 0:02:56.8]} 3... d6 {[%clk 0:02:59.8]}
4. Ne2 {[%clk 0:02:57.2]} 4... c5 {[%clk 0:02:59.8]} 5. O-O {[%clk 0:02:57.4]}
5... Bg7 {[%clk 0:02:59.5]} 6. Nbc3 {[%clk 0:02:57.5]} 6... Nc6 {[%clk
0:02:59.1]} 7. d3 {[%clk 0:02:56]} 7... O-O {[%clk 0:02:59.1]} 8. h3 {[%clk
0:02:56.2]} 8... Rb8 {[%clk 0:02:58.3]} 9. Be3 {[%clk 0:02:54.2]} 9... b5 {[%clk
0:02:52.7]} 10. Qd2 {[%clk 0:02:54.4]} 10... b4 {[%clk 0:02:52.3]} 11. Nd1
{[%clk 0:02:54.6]} 11... Nd7 {[%clk 0:02:49.6]} 12. Kh2 {[%clk 0:02:53.7]} 12...
Nd4 {[%clk 0:02:49.5]} 13. c3 {[%clk 0:02:48.4]} 13... Nxe2 {[%clk 0:02:46.9]}
14. Qxe2 {[%clk 0:02:49.3]} 14... bxc3 {[%clk 0:02:45.1]} 15. bxc3 {[%clk
0:02:50.2]} 15... Qa5 {[%clk 0:02:41.8]} 16. Qc2 {[%clk 0:02:46.8]} 16... Ba6
{[%clk 0:02:38.5]} 17. Bd2 {[%clk 0:02:33.9]} 17... Ne5 {[%clk 0:02:29.4]} 18.
c4 {[%clk 0:02:33.7]} 18... Qa3 {[%clk 0:02:22.4]} 19. Bc3 {[%clk 0:02:33.9]}
19... Nc6 {[%clk 0:02:17.9]} 20. Bxg7 {[%clk 0:02:28.6]} 20... Kxg7 {[%clk
0:02:18.8]} 21. Qc3+ {[%clk 0:02:27]} 21... Qxc3 {[%clk 0:02:18.9]} 22. Nxc3
{[%clk 0:02:27.9]} 22... Rb2 {[%clk 0:02:04.4]} 23. Rab1 {[%clk 0:02:26.2]}
23... Rfb8 {[%clk 0:02:04.6]} 24. f4 {[%clk 0:01:36.5]} 24... Nd4 {[%clk
0:01:51.8]} 25. Nb5 {[%clk 0:01:26.3]} 25... Rxb1 {[%clk 0:01:26.2]} 26. Rxb1
{[%clk 0:01:27.2]} 26... Bxb5 {[%clk 0:01:25.9]} 27. a4 {[%clk 0:01:22.9]} 27...
a6 {[%clk 0:01:25.2]} 28. e5 {[%clk 0:01:15.4]} 28... dxe5 {[%clk 0:01:18.6]}
29. fxe5 {[%clk 0:01:15.1]} 29... Rb6 {[%clk 0:01:10.2]} 30. Bd5 {[%clk
0:01:02.7]} 30... e6 {[%clk 0:00:59.2]} 31. Be4 {[%clk 0:01:00.7]} 31... Kf8
{[%clk 0:00:54.6]} 32. Kg2 {[%clk 0:00:59.6]} 32... Ke7 {[%clk 0:00:54.8]} 33.
Kf2 {[%clk 0:00:59.5]} 33... Kd8 {[%clk 0:00:54.9]} 34. axb5 {[%clk 0:00:56.1]}
34... axb5 {[%clk 0:00:54.2]} 35. cxb5 {[%clk 0:00:55]} 35... Rxb5 {[%clk
0:00:50.2]} 36. Ra1 {[%clk 0:00:52.8]} 36... Rb2+ {[%clk 0:00:49.9]} 37. Kg1
{[%clk 0:00:49.6]} 37... Ke7 {[%clk 0:00:49.3]} 38. Ra7+ {[%clk 0:00:47.6]}
38... Kf8 {[%clk 0:00:49]} 39. Rc7 {[%clk 0:00:47.1]} 39... Rc2 {[%clk 0:00:46]}
40. g4 {[%clk 0:00:46.1]} 40... h6 {[%clk 0:00:45.1]} 41. h4 {[%clk 0:00:46.1]}
41... g5 {[%clk 0:00:41.9]} 42. h5 {[%clk 0:00:44.6]} 42... Kg7 {[%clk
0:00:40.1]} 43. Kf1 {[%clk 0:00:37.8]} 43... Rc1+ {[%clk 0:00:28.5]} 44. Kf2
{[%clk 0:00:34.4]} 44... Rc2+ {[%clk 0:00:27.7]} 45. Kf1 {[%clk 0:00:34.5]}
45... Rc3 {[%clk 0:00:24.5]} 46. Bg6 {[%clk 0:00:33.2]} 46... Nb3 {[%clk
0:00:13.9]} 47. Rxf7+ {[%clk 0:00:31.7]} 47... Kg8 {[%clk 0:00:14.1]} 48. Re7
{[%clk 0:00:28.8]} 48... Nc1 {[%clk 0:00:13.4]} 49. Re8+ {[%clk 0:00:26.5]}
49... Kg7 {[%clk 0:00:13]} 50. Re7+ {[%clk 0:00:27]} 50... Kf8 {[%clk
0:00:13.4]} 51. Rxe6 {[%clk 0:00:25.7]} 51... Nxd3 {[%clk 0:00:12.9]} 52. Re8+
{[%clk 0:00:20.5]} 52... Kg7 {[%clk 0:00:13]} 53. e6 {[%clk 0:00:21]} 53... Nf4
{[%clk 0:00:09.2]} 54. e7 {[%clk 0:00:20.1]} 54... Re3 {[%clk 0:00:07.4]} 55.
Kf2 {[%clk 0:00:18.9]} 55... Re5 {[%clk 0:00:07]} 56. Bf5 {[%clk 0:00:12.9]}
56... Nd5 {[%clk 0:00:05]} 57. Rc8 {[%clk 0:00:09.6]} 57... Nxe7 {[%clk
0:00:05]} 58. Rc7 {[%clk 0:00:10]} 58... Kf8 {[%clk 0:00:04.7]} 59. Bg6 {[%clk
0:00:06.7]} 59... Nxg6 {[%clk 0:00:03.8]} 60. hxg6 {[%clk 0:00:07.6]} 60... Re6
{[%clk 0:00:04.4]} 61. Rf7+ {[%clk 0:00:07.6]} 61... Kg8 {[%clk 0:00:04.8]} 62.
Rc7 {[%clk 0:00:06.5]} 62... Rxg6 {[%clk 0:00:03.3]} 63. Rxc5 {[%clk 0:00:06.9]}
63... Rf6+ {[%clk 0:00:03.9]} 64. Kg3 {[%clk 0:00:06.7]} 64... Kg7 {[%clk
0:00:04.6]} 65. Rc7+ {[%clk 0:00:06.8]} 65... Kg6 {[%clk 0:00:05.5]} 66. Rc4
{[%clk 0:00:07.1]} 66... Re6 {[%clk 0:00:06]} 67. Rb4 {[%clk 0:00:07.2]} 67...
Kf6 {[%clk 0:00:06.5]} 68. Rc4 {[%clk 0:00:07.2]} 68... Rd6 {[%clk 0:00:06.6]}
69. Rb4 {[%clk 0:00:07.7]} 69... Rd3+ {[%clk 0:00:06.6]} 70. Kg2 {[%clk
0:00:07.6]} 70... Ke5 {[%clk 0:00:07.3]} 71. Ra4 {[%clk 0:00:07.7]} 71... Rd4
{[%clk 0:00:07.1]} 72. Ra6 {[%clk 0:00:07.7]} 72... Rxg4+ {[%clk 0:00:07.1]} 73.
Kf3 {[%clk 0:00:08.3]} 73... Rf4+ {[%clk 0:00:07.4]} 74. Ke3 {[%clk 0:00:08.4]}
74... Rh4 {[%clk 0:00:08.3]} 75. Ra5+ {[%clk 0:00:07.9]} 75... Kf6 {[%clk
0:00:08.7]} 76. Kf3 {[%clk 0:00:07.9]} 76... Kg6 {[%clk 0:00:09.1]} 77. Kg3
{[%clk 0:00:08.5]} 77... Kh5 {[%clk 0:00:09.7]} 78. Kg2 {[%clk 0:00:08.9]} 78...
Rd4 {[%clk 0:00:09.9]} 79. Ra6 {[%clk 0:00:09.7]} 79... Rd2+ {[%clk 0:00:10]}
80. Kf3 {[%clk 0:00:10.2]} 80... Rd3+ {[%clk 0:00:10.9]} 81. Ke4 {[%clk
0:00:10.5]} 81... Rb3 {[%clk 0:00:10.3]} 82. Kf5 {[%clk 0:00:11.1]} 82... Rf3+
{[%clk 0:00:10.6]} 83. Ke5 {[%clk 0:00:11]} 83... Rf1 {[%clk 0:00:11.5]} 84. Ra2
{[%clk 0:00:08.3]} 84... g4 {[%clk 0:00:11]} 85. Rh2+ {[%clk 0:00:08.4]} 85...
Kg5 {[%clk 0:00:11.5]} 86. Rg2 {[%clk 0:00:08]} 86... h5 {[%clk 0:00:11.9]} 87.
Ke4 {[%clk 0:00:08.6]} 87... h4 {[%clk 0:00:12.4]} 0-1

[Event "Early-Titled-Tuesday-Blitz-August-29-2023"]
[Site "Chess.com"]
[Date "2023.08.29"]
[Round "7"]
[White "Vsevolod_Ovchinnikov"]
[Black "Kirill_Klukin"]
[Result "0-1"]
[WhiteElo "2619"]
[BlackElo "2808"]
[TimeControl "180+1"]
[EndTime "9:18:58 PDT"]
[Termination "Kirill_Klukin won by resignation"]

1. d4 {[%clk 0:03:00.9]} 1... Nf6 {[%clk 0:02:59.7]} 2. c4 {[%clk 0:03:01.6]}
2... Nc6 {[%clk 0:02:59.8]} 3. Nf3 {[%clk 0:03:00.9]} 3... e6 {[%clk 0:02:58.4]}
4. g3 {[%clk 0:03:01.4]} 4... Bb4+ {[%clk 0:02:58.3]} 5. Bd2 {[%clk 0:03:02.1]}
5... Qe7 {[%clk 0:02:58.5]} 6. Nc3 {[%clk 0:03:02.8]} 6... O-O {[%clk
0:02:57.8]} 7. Bg2 {[%clk 0:02:59.8]} 7... Bxc3 {[%clk 0:02:58.4]} 8. Bxc3
{[%clk 0:03:00.7]} 8... Ne4 {[%clk 0:02:59.3]} 9. Rc1 {[%clk 0:03:00.7]} 9...
Nxc3 {[%clk 0:03:00]} 10. Rxc3 {[%clk 0:03:01.6]} 10... d6 {[%clk 0:03:00.9]}
11. d5 {[%clk 0:02:59]} 11... Nb8 {[%clk 0:03:00.7]} 12. dxe6 {[%clk 0:02:59.4]}
12... fxe6 {[%clk 0:03:00.8]} 13. Nd4 {[%clk 0:03:00.1]} 13... a5 {[%clk
0:02:57.9]} 14. O-O {[%clk 0:02:59]} 14... Na6 {[%clk 0:02:58.1]} 15. Qd2 {[%clk
0:02:54]} 15... Nc5 {[%clk 0:02:57.3]} 16. b3 {[%clk 0:02:45.5]} 16... c6 {[%clk
0:02:52.3]} 17. Nc2 {[%clk 0:02:22.9]} 17... e5 {[%clk 0:02:49.1]} 18. Ne3
{[%clk 0:02:18.6]} 18... Be6 {[%clk 0:02:40.2]} 19. a3 {[%clk 0:02:09.5]} 19...
a4 {[%clk 0:02:38.6]} 20. b4 {[%clk 0:02:09.7]} 20... Nb3 {[%clk 0:02:39]} 21.
Qd1 {[%clk 0:02:10.1]} 21... Rad8 {[%clk 0:02:35.9]} 22. Rd3 {[%clk 0:02:03.8]}
22... Rf6 {[%clk 0:01:57.5]} 23. Qc2 {[%clk 0:01:30.5]} 23... Bf7 {[%clk
0:01:54.5]} 24. Be4 {[%clk 0:01:20]} 24... Nd4 {[%clk 0:01:40.2]} 25. Qb2 {[%clk
0:01:16.8]} 25... Bh5 {[%clk 0:01:27.3]} 26. Rd2 {[%clk 0:00:57.5]} 26... Rdf8
{[%clk 0:01:24.4]} 27. f3 {[%clk 0:00:48.1]} 27... Bg6 {[%clk 0:01:24.4]} 28.
Qb1 {[%clk 0:00:41.8]} 28... Re6 {[%clk 0:01:13.1]} 29. Bxg6 {[%clk 0:00:34]}
29... Rxg6 {[%clk 0:01:13.1]} 30. Qd3 {[%clk 0:00:30.6]} 30... Qg5 {[%clk
0:01:10.3]} 31. Ng2 {[%clk 0:00:23.6]} 31... h5 {[%clk 0:01:05]} 32. Qe3 {[%clk
0:00:10.9]} 32... Qf6 {[%clk 0:00:52]} 33. Qe4 {[%clk 0:00:10.5]} 33... Qe6
{[%clk 0:00:43.6]} 34. c5 {[%clk 0:00:05]} 34... d5 {[%clk 0:00:42.9]} 35. Qb1
{[%clk 0:00:05]} 35... Rgf6 {[%clk 0:00:39.9]} 36. Qd1 {[%clk 0:00:04.6]} 36...
Nb3 {[%clk 0:00:39.7]} 37. Rd3 {[%clk 0:00:04.4]} 37... e4 {[%clk 0:00:40.3]}
38. Re3 {[%clk 0:00:04.7]} 38... Qf7 {[%clk 0:00:36.1]} 39. Rc3 {[%clk
0:00:03.9]} 39... d4 {[%clk 0:00:32]} 40. Rc2 {[%clk 0:00:04.4]} 40... e3 {[%clk
0:00:32.5]} 41. Rb2 {[%clk 0:00:03.3]} 41... Qd5 {[%clk 0:00:28.9]} 42. f4
{[%clk 0:00:03.2]} 42... Qe4 {[%clk 0:00:24.2]} 43. Qd3 {[%clk 0:00:03.7]} 43...
Qxd3 {[%clk 0:00:23.8]} 44. exd3 {[%clk 0:00:04.6]} 44... g5 {[%clk 0:00:21.7]}
45. Rf3 {[%clk 0:00:04.3]} 45... Kg7 {[%clk 0:00:20.9]} 46. Kf1 {[%clk
0:00:04.3]} 46... Kg6 {[%clk 0:00:20.8]} 47. Ke1 {[%clk 0:00:04.6]} 47... Nd2
{[%clk 0:00:18.5]} 48. Rxd2 {[%clk 0:00:04.4]} 48... exd2+ {[%clk 0:00:19.4]}
49. Kxd2 {[%clk 0:00:05.3]} 49... Re8 {[%clk 0:00:19.8]} 50. Rf2 {[%clk
0:00:05.3]} 50... g4 {[%clk 0:00:16.7]} 51. Rf1 {[%clk 0:00:05.3]} 51... Kf7
{[%clk 0:00:16.7]} 52. Rf2 {[%clk 0:00:05.1]} 52... Rd6 {[%clk 0:00:17.1]} 53.
Kc2 {[%clk 0:00:04.8]} 53... Rde6 {[%clk 0:00:17.2]} 54. Kd2 {[%clk 0:00:05.4]}
54... Kf6 {[%clk 0:00:16.6]} 55. Kd1 {[%clk 0:00:04.2]} 55... R6e7 {[%clk
0:00:13.8]} 56. Rc2 {[%clk 0:00:03.3]} 56... Rd8 {[%clk 0:00:12]} 57. Rc1 {[%clk
0:00:02.7]} 57... Rde8 {[%clk 0:00:11.3]} 58. Rc2 {[%clk 0:00:03.4]} 58... Ke6
{[%clk 0:00:11.1]} 59. Re2+ {[%clk 0:00:03.5]} 59... Kd5 {[%clk 0:00:11.6]} 60.
Rc2 {[%clk 0:00:03.7]} 60... Rb8 {[%clk 0:00:07.4]} 61. Rc1 {[%clk 0:00:03.3]}
61... b6 {[%clk 0:00:07.6]} 62. cxb6 {[%clk 0:00:04.2]} 62... Rxb6 {[%clk
0:00:08.4]} 63. Rc5+ {[%clk 0:00:04.7]} 63... Kd6 {[%clk 0:00:09.1]} 64. Rxh5
{[%clk 0:00:05.5]} 64... Rb5 {[%clk 0:00:08.6]} 65. Rh6+ {[%clk 0:00:06]} 65...
Kc7 {[%clk 0:00:09.1]} 66. Rg6 {[%clk 0:00:05.2]} 66... c5 {[%clk 0:00:09.5]}
67. Rg5 {[%clk 0:00:05.4]} 67... Kb6 {[%clk 0:00:09.4]} 68. Rg6+ {[%clk
0:00:05.7]} 68... Kb7 {[%clk 0:00:09.7]} 69. Rg5 {[%clk 0:00:06.5]} 69... Ka6
{[%clk 0:00:10]} 70. Rg6+ {[%clk 0:00:06.1]} 70... Rb6 {[%clk 0:00:10.5]} 71.
Rxb6+ {[%clk 0:00:05.8]} 71... Kxb6 {[%clk 0:00:11.4]} 72. bxc5+ {[%clk
0:00:06.4]} 72... Kxc5 {[%clk 0:00:12.3]} 73. Ne1 {[%clk 0:00:05.7]} 73... Rb7
{[%clk 0:00:12.2]} 74. Nc2 {[%clk 0:00:05.9]} 74... Rb1+ {[%clk 0:00:09.2]} 75.
Ke2 {[%clk 0:00:06]} 75... Kd5 {[%clk 0:00:09.4]} 76. Ne1 {[%clk 0:00:04]} 76...
Rb2+ {[%clk 0:00:09.3]} 77. Kf1 {[%clk 0:00:04.1]} 77... Rxh2 {[%clk 0:00:09.7]}
78. Ng2 {[%clk 0:00:04.5]} 78... Rh1+ {[%clk 0:00:09.8]} 79. Ke2 {[%clk
0:00:05.1]} 79... Ra1 {[%clk 0:00:10.5]} 80. f5 {[%clk 0:00:05.8]} 80... Ke5
{[%clk 0:00:10.4]} 81. Nf4 {[%clk 0:00:05.2]} 81... Ra2+ {[%clk 0:00:10.1]} 82.
Kd1 {[%clk 0:00:04.9]} 82... Kxf5 {[%clk 0:00:10.6]} 83. Nd5 {[%clk 0:00:04.9]}
83... Rxa3 {[%clk 0:00:11]} 84. Ne7+ {[%clk 0:00:05.4]} 84... Ke6 {[%clk
0:00:10.7]} 85. Nc6 {[%clk 0:00:06]} 85... Kd5 {[%clk 0:00:10.5]} 86. Ne7+
{[%clk 0:00:05.5]} 86... Kc5 {[%clk 0:00:11.1]} 87. Nf5 {[%clk 0:00:05.4]} 87...
Rxd3+ {[%clk 0:00:11.3]} 88. Kc2 {[%clk 0:00:05.8]} 88... Rf3 {[%clk 0:00:12.2]}
89. Nh4 {[%clk 0:00:05]} 89... Rxg3 {[%clk 0:00:12]} 90. Nf5 {[%clk 0:00:05.5]}
90... Rf3 {[%clk 0:00:12]} 91. Nh4 {[%clk 0:00:04]} 91... Kc4 {[%clk 0:00:12.4]}
0-1

[Event "Early-Titled-Tuesday-Blitz-August-29-2023"]
[Site "Chess.com"]
[Date "2023.08.29"]
[Round "8"]
[White "Irina_Mikhaylova"]
[Black "TC2304"]
[Result "1-0"]
[WhiteElo "2292"]
[BlackElo "2406"]
[TimeControl "180+1"]
[EndTime "9:22:08 PDT"]
[Termination "Irina_Mikhaylova won by resignation"]

1. d4 {[%clk 0:03:00.4]} 1... d5 {[%clk 0:02:59.8]} 2. Nf3 {[%clk 0:03:00.5]}
2... Nf6 {[%clk 0:02:59.9]} 3. c4 {[%clk 0:03:00.5]} 3... c6 {[%clk 0:03:00.5]}
4. cxd5 {[%clk 0:03:00.6]} 4... cxd5 {[%clk 0:03:01.4]} 5. Nc3 {[%clk
0:03:00.4]} 5... a6 {[%clk 0:03:00.1]} 6. Bf4 {[%clk 0:02:58.9]} 6... e6 {[%clk
0:03:00.6]} 7. e3 {[%clk 0:02:56.5]} 7... Nc6 {[%clk 0:03:01.3]} 8. Bd3 {[%clk
0:02:53.6]} 8... Bd6 {[%clk 0:03:01.2]} 9. Bg3 {[%clk 0:02:53.1]} 9... O-O
{[%clk 0:02:55.2]} 10. Rc1 {[%clk 0:02:52.9]} 10... Bd7 {[%clk 0:02:41.1]} 11.
Bxd6 {[%clk 0:02:52.5]} 11... Re8 {[%clk 0:02:25.5]} 12. O-O {[%clk 0:02:46.6]}
12... Bc8 {[%clk 0:02:14.9]} 13. Be5 {[%clk 0:02:45]} 13... Nd7 {[%clk
0:02:13.9]} 14. Bg3 {[%clk 0:02:45]} 14... Nf6 {[%clk 0:02:13.1]} 15. Bh4 {[%clk
0:02:44]} 15... h6 {[%clk 0:02:12.6]} 16. Ne5 {[%clk 0:02:40.9]} 16... g5 {[%clk
0:02:11.8]} 17. Nxc6 {[%clk 0:02:39.4]} 17... bxc6 {[%clk 0:02:11.4]} 18. Bg3
{[%clk 0:02:39.4]} 18... Kg7 {[%clk 0:02:07.7]} 19. Be5 {[%clk 0:02:38.4]} 19...
Kg8 {[%clk 0:01:58.2]} 20. f4 {[%clk 0:02:37.9]} 20... gxf4 {[%clk 0:01:56.6]}
1-0

[Event "Early-Titled-Tuesday-Blitz-August-29-2023"]
[Site "Chess.com"]
[Date "2023.08.29"]
[Round "8"]
[White "FGHSMN"]
[Black "temiksmozg"]
[Result "1-0"]
[WhiteElo "2923"]
[BlackElo "2651"]
[TimeControl "180+1"]
[EndTime "9:22:47 PDT"]
[Termination "FGHSMN won by resignation"]

1. d4 {[%clk 0:03:00.9]} 1... Nf6 {[%clk 0:02:58.9]} 2. Nf3 {[%clk 0:03:01.4]}
2... e6 {[%clk 0:02:58.6]} 3. Bf4 {[%clk 0:03:01.8]} 3... d5 {[%clk 0:02:58.4]}
4. e3 {[%clk 0:03:02.1]} 4... Bd6 {[%clk 0:02:59]} 5. Ne5 {[%clk 0:03:01.6]}
5... O-O {[%clk 0:02:59.5]} 6. Nd2 {[%clk 0:03:01.8]} 6... Nfd7 {[%clk
0:02:46.6]} 7. Bd3 {[%clk 0:03:00.2]} 7... f6 {[%clk 0:02:16.6]} 8. Qh5 {[%clk
0:02:54.3]} 8... f5 {[%clk 0:02:16.8]} 9. Ndf3 {[%clk 0:02:42]} 9... Nf6 {[%clk
0:02:10.3]} 10. Qh3 {[%clk 0:02:36.4]} 10... Nbd7 {[%clk 0:02:09.4]} 11. Ng5
{[%clk 0:02:28.3]} 11... Qe7 {[%clk 0:02:02.6]} 12. Nxe6 {[%clk 0:02:10.9]}
12... Qxe6 {[%clk 0:02:01.8]} 13. Bxf5 {[%clk 0:02:10.6]} 13... Qe7 {[%clk
0:01:59]} 14. Be6+ {[%clk 0:02:10.8]} 14... Rf7 {[%clk 0:01:49.8]} 15. Nxf7
{[%clk 0:02:02.4]} 15... Bxf4 {[%clk 0:01:47.7]} 16. Ne5+ {[%clk 0:02:02.5]}
16... Kf8 {[%clk 0:01:46.1]} 17. Ng6+ {[%clk 0:02:03.1]} 1-0

[Event "Early-Titled-Tuesday-Blitz-August-29-2023"]
[Site "Chess.com"]
[Date "2023.08.29"]
[Round "8"]
[White "Haykoooo0o"]
[Black "Mesa_1"]
[Result "1-0"]
[WhiteElo "2455"]
[BlackElo "2562"]
[TimeControl "180+1"]
[EndTime "9:23:02 PDT"]
[Termination "Haykoooo0o won by resignation"]

1. b3 {[%clk 0:03:00.5]} 1... d5 {[%clk 0:02:59.1]} 2. Bb2 {[%clk 0:03:00]} 2...
Bf5 {[%clk 0:02:59.8]} 3. e3 {[%clk 0:03:00.2]} 3... h6 {[%clk 0:03:00]} 4. Nf3
{[%clk 0:03:00]} 4... e6 {[%clk 0:03:00.5]} 5. c4 {[%clk 0:02:58.3]} 5... Nf6
{[%clk 0:03:00.9]} 6. Be2 {[%clk 0:02:57.5]} 6... Bd6 {[%clk 0:03:01.4]} 7. O-O
{[%clk 0:02:56.7]} 7... O-O {[%clk 0:03:02.2]} 8. d3 {[%clk 0:02:55.4]} 8... Bh7
{[%clk 0:03:02.4]} 9. Nbd2 {[%clk 0:02:55.7]} 9... c6 {[%clk 0:03:02.7]} 10. a3
{[%clk 0:02:56.1]} 10... a5 {[%clk 0:03:02.7]} 11. Rc1 {[%clk 0:02:56.3]} 11...
Nbd7 {[%clk 0:03:03.2]} 12. Re1 {[%clk 0:02:41]} 12... Qe7 {[%clk 0:03:03.5]}
13. Ra1 {[%clk 0:02:35.1]} 13... e5 {[%clk 0:03:03.9]} 14. Bf1 {[%clk
0:02:33.2]} 14... e4 {[%clk 0:03:02]} 15. dxe4 {[%clk 0:02:31.4]} 15... dxe4
{[%clk 0:03:00]} 16. Nd4 {[%clk 0:02:31]} 16... Rad8 {[%clk 0:02:50.6]} 17. Qc2
{[%clk 0:02:27.6]} 17... Bc7 {[%clk 0:02:50.4]} 18. Be2 {[%clk 0:02:12.6]} 18...
Ne5 {[%clk 0:02:46.1]} 19. b4 {[%clk 0:02:03.6]} 19... Neg4 {[%clk 0:02:37.8]}
20. Nf1 {[%clk 0:01:56.5]} 20... axb4 {[%clk 0:02:31]} 21. axb4 {[%clk
0:01:52.7]} 21... Qxb4 {[%clk 0:02:31.9]} 22. Ba3 {[%clk 0:01:50.2]} 22... Qb6
{[%clk 0:02:24.3]} 23. Bxf8 {[%clk 0:01:47.4]} 23... Rxf8 {[%clk 0:02:16.9]} 24.
c5 {[%clk 0:01:47.2]} 24... Qb4 {[%clk 0:02:09.8]} 25. Reb1 {[%clk 0:01:46.3]}
1-0

[Event "Early-Titled-Tuesday-Blitz-August-29-2023"]
[Site "Chess.com"]
[Date "2023.08.29"]
[Round "8"]
[White "nihalsarin"]
[Black "Fandorine"]
[Result "1-0"]
[WhiteElo "3137"]
[BlackElo "2947"]
[TimeControl "180+1"]
[EndTime "9:23:06 PDT"]
[Termination "nihalsarin won by resignation"]

1. Nf3 {[%clk 0:03:00.9]} 1... Nf6 {[%clk 0:02:59.8]} 2. b3 {[%clk 0:03:01.8]}
2... d5 {[%clk 0:02:50.6]} 3. Bb2 {[%clk 0:03:02]} 3... e6 {[%clk 0:02:50.8]} 4.
e3 {[%clk 0:03:02.5]} 4... b6 {[%clk 0:02:48.9]} 5. c4 {[%clk 0:03:03]} 5... Bb7
{[%clk 0:02:48.7]} 6. Nc3 {[%clk 0:03:03.8]} 6... Be7 {[%clk 0:02:48.9]} 7. Rc1
{[%clk 0:03:04.4]} 7... O-O {[%clk 0:02:49.2]} 8. cxd5 {[%clk 0:03:04.5]} 8...
exd5 {[%clk 0:02:49.5]} 9. Ne2 {[%clk 0:02:59.9]} 9... Re8 {[%clk 0:02:48.7]}
10. g3 {[%clk 0:03:00.2]} 10... c5 {[%clk 0:02:41.6]} 11. Bg2 {[%clk 0:03:00.3]}
11... Nbd7 {[%clk 0:02:38.7]} 12. O-O {[%clk 0:03:01]} 12... Nf8 {[%clk
0:02:39.2]} 13. d4 {[%clk 0:03:01.5]} 13... Ng6 {[%clk 0:02:39.9]} 14. dxc5
{[%clk 0:03:01.7]} 14... bxc5 {[%clk 0:02:39.8]} 15. Bxf6 {[%clk 0:03:02.2]}
15... gxf6 {[%clk 0:02:38.6]} 16. h4 {[%clk 0:03:02.7]} 16... Rc8 {[%clk
0:02:37]} 17. h5 {[%clk 0:03:03]} 17... Ne5 {[%clk 0:02:37.4]} 18. Nf4 {[%clk
0:03:03.8]} 18... Bf8 {[%clk 0:02:33]} 19. Nh4 {[%clk 0:03:03.3]} 19... Ba6
{[%clk 0:02:28.4]} 20. Bxd5 {[%clk 0:03:01.5]} 20... Bxf1 {[%clk 0:02:27.8]} 21.
Kxf1 {[%clk 0:03:02.4]} 21... Kh8 {[%clk 0:02:25.9]} 22. Nf5 {[%clk 0:03:02.4]}
22... Qd7 {[%clk 0:02:23.3]} 23. e4 {[%clk 0:03:03.1]} 23... Red8 {[%clk
0:02:17.1]} 24. Kg2 {[%clk 0:03:03.6]} 24... c4 {[%clk 0:02:05.3]} 25. bxc4
{[%clk 0:03:04.5]} 25... Bc5 {[%clk 0:02:05.4]} 26. Qh1 {[%clk 0:03:03.1]} 26...
Rg8 {[%clk 0:02:05.1]} 27. Qh4 {[%clk 0:03:02.5]} 27... Rg5 {[%clk 0:02:05.3]}
28. Rb1 {[%clk 0:03:01.4]} 28... Bb6 {[%clk 0:01:54.2]} 29. Nh3 {[%clk
0:02:38.9]} 29... Rxf5 {[%clk 0:01:52.8]} 30. exf5 {[%clk 0:02:39.8]} 30... Qxf5
{[%clk 0:01:52.6]} 31. Rb3 {[%clk 0:02:40.6]} 31... Rd8 {[%clk 0:01:27.8]} 32.
Be4 {[%clk 0:02:38.6]} 32... Qe6 {[%clk 0:01:23.6]} 33. Nf4 {[%clk 0:02:39.2]}
1-0

[Event "Early-Titled-Tuesday-Blitz-August-29-2023"]
[Site "Chess.com"]
[Date "2023.08.29"]
[Round "8"]
[White "MrAnnihilation"]
[Black "CFalcons8"]
[Result "1-0"]
[WhiteElo "2436"]
[BlackElo "2236"]
[TimeControl "180+1"]
[EndTime "9:23:14 PDT"]
[Termination "MrAnnihilation won by resignation"]

1. e4 {[%clk 0:03:00.9]} 1... e5 {[%clk 0:02:50.3]} 2. Nf3 {[%clk 0:03:00.7]}
2... Nc6 {[%clk 0:02:47.4]} 3. Bc4 {[%clk 0:03:01]} 3... Nf6 {[%clk 0:02:39.9]}
4. d3 {[%clk 0:03:00.1]} 4... Bc5 {[%clk 0:02:38.2]} 5. Nc3 {[%clk 0:03:00.8]}
5... d6 {[%clk 0:02:36.6]} 6. Be3 {[%clk 0:03:01]} 6... Bxe3 {[%clk 0:02:33.8]}
7. fxe3 {[%clk 0:03:01.9]} 7... h6 {[%clk 0:02:32.5]} 8. a3 {[%clk 0:03:01.2]}
8... a6 {[%clk 0:02:26.4]} 9. O-O {[%clk 0:02:51.2]} 9... O-O {[%clk 0:02:20.8]}
10. Qe1 {[%clk 0:02:48.4]} 10... b5 {[%clk 0:02:09.7]} 11. Ba2 {[%clk
0:02:46.1]} 11... Be6 {[%clk 0:02:03.8]} 12. Nh4 {[%clk 0:02:44.5]} 12... Bxa2
{[%clk 0:02:00]} 13. Rxa2 {[%clk 0:02:45.4]} 13... Nxe4 {[%clk 0:01:59.4]} 14.
dxe4 {[%clk 0:02:40.4]} 14... Ne7 {[%clk 0:01:53.3]} 15. Ra1 {[%clk 0:02:23]}
15... g6 {[%clk 0:01:45.2]} 16. Qg3 {[%clk 0:02:09]} 16... Kh7 {[%clk
0:01:37.6]} 17. Rf2 {[%clk 0:02:03.6]} 17... f5 {[%clk 0:01:35.6]} 18. exf5
{[%clk 0:01:59]} 18... gxf5 {[%clk 0:01:36.5]} 19. Raf1 {[%clk 0:01:53.6]} 19...
Rg8 {[%clk 0:01:33.6]} 20. Qh3 {[%clk 0:01:51.5]} 1-0

[Event "Early-Titled-Tuesday-Blitz-August-29-2023"]
[Site "Chess.com"]
[Date "2023.08.29"]
[Round "8"]
[White "IljaZaragatski"]
[Black "Cherneevo_23"]
[Result "1-0"]
[WhiteElo "2610"]
[BlackElo "2418"]
[TimeControl "180+1"]
[EndTime "9:23:16 PDT"]
[Termination "IljaZaragatski won by resignation"]

1. e4 {[%clk 0:03:00.9]} 1... c5 {[%clk 0:02:52.3]} 2. Nf3 {[%clk 0:03:01]} 2...
d6 {[%clk 0:02:52.7]} 3. d4 {[%clk 0:03:01.3]} 3... cxd4 {[%clk 0:02:51.9]} 4.
Nxd4 {[%clk 0:03:02.2]} 4... Nf6 {[%clk 0:02:51.4]} 5. Nc3 {[%clk 0:03:02.8]}
5... a6 {[%clk 0:02:50.6]} 6. f3 {[%clk 0:03:03.2]} 6... e5 {[%clk 0:02:49.8]}
7. Nb3 {[%clk 0:03:03.4]} 7... Be6 {[%clk 0:02:49.4]} 8. Be3 {[%clk 0:03:03.8]}
8... Be7 {[%clk 0:02:47.3]} 9. Qd2 {[%clk 0:03:04.2]} 9... O-O {[%clk
0:02:46.9]} 10. O-O-O {[%clk 0:03:03.5]} 10... b5 {[%clk 0:02:46.4]} 11. g4
{[%clk 0:03:03]} 11... b4 {[%clk 0:02:45.6]} 12. Nd5 {[%clk 0:03:01.4]} 12...
Bxd5 {[%clk 0:02:45.2]} 13. exd5 {[%clk 0:03:01.5]} 13... a5 {[%clk 0:02:45.8]}
14. Kb1 {[%clk 0:02:53.1]} 14... Nfd7 {[%clk 0:02:43.2]} 15. c4 {[%clk 0:02:43]}
15... Na6 {[%clk 0:02:39.4]} 16. h4 {[%clk 0:02:39.9]} 16... a4 {[%clk
0:02:22.2]} 17. Nc1 {[%clk 0:02:39.5]} 17... Qa5 {[%clk 0:02:18]} 18. g5 {[%clk
0:02:38.5]} 18... f5 {[%clk 0:02:16.8]} 19. gxf6 {[%clk 0:02:35.3]} 19... Rxf6
{[%clk 0:02:12.1]} 20. Bh3 {[%clk 0:02:33]} 20... Ndc5 {[%clk 0:02:11.3]} 21.
Bg5 {[%clk 0:02:30.2]} 21... Rf7 {[%clk 0:02:10]} 22. Be6 {[%clk 0:02:29.5]}
22... Nxe6 {[%clk 0:01:10.6]} 23. dxe6 {[%clk 0:02:29.4]} 1-0